Cogmind - Beta 16 @@@ ROGUE MODE // 2025.11.08 @ 13:54:55 Player: Anting Result: Self-destructed Performance ------------- Evolutions (2) 1000 Regions Visited (3) 600 Robots Destroyed (28) 140 Value Destroyed (690) 690 Prototype IDs (15) 300 Alien Tech Used (0) 0 Bonus (0) 0 TOTAL SCORE: 2730 Bonus ------- None Cogmind --------- Core Integrity 550/550 Matter 300/300 Energy 200/200 System Corruption 0% Temperature Cool (0) Movement Treading (160) Location -8/Materials Parts ------- > --- POWER (1) -------- Subdweller Power Source > --- PROPULSION (3) --- Light Treads Light Treads > --- UTILITY (4) ------ Medium Storage Unit Seismic Detector > --- WEAPON (3) ------- Subdweller Beam Cannon Subdweller Machine Gun > --- INVENTORY (10) --- Light Treads Arachnoskeleton Riot Gun Subdweller Machine Gun Grenade Launcher Grenade Launcher Multitool Peak State ------------ > --- POWER ------------ Ion Engine > --- PROPULSION ------- Light Treads Aluminum Leg > --- UTILITY ---------- Medium Storage Unit Improved Terrain Scanner > --- WEAPON ----------- Subdweller Machine Gun Barrage Gun > --- INVENTORY -------- Ion Engine Light Treads Light Treads Seismic Detector Beam Cannon Light Assault Rifle Light Assault Rifle Light Assault Rifle Grenade Launcher Grenade Launcher [Rating: 13] Favorites ----------- Power Ion Engine Engine Ion Engine Propulsion Aluminum Leg Treads Light Treads Leg Aluminum Leg Utility Medium Storage Unit Device Seismic Detector Storage Medium Storage Unit Weapon Barrage Gun Energy Gun Small Laser Energy Cannon Subdweller Beam Cannon Ballistic Gun Barrage Gun Launcher Grenade Launcher Build | -11 -10 -10 -8 ------- Run | Yrd Mat Sub Mat Slots Evolved 4 | . . . 4 Power . | . . . . Propulsion 1 | . . . 1 Utility 2 | . . . 2 Weapon 1 | . . . 1 Parts Attached 24 | 8 5 11 . Power 3 | 1 . 2 . Engine 3 | 1 . 2 . Core . | . . . . Reactor . | . . . . Propulsion 5 | 2 1 2 . Treads 2 | . . 2 . Leg 3 | 2 1 . . Wheel . | . . . . Hover . | . . . . Flight . | . . . . Utility 4 | 2 1 1 . Device 2 | 1 . 1 . Storage 2 | 1 1 . . Processor . | . . . . Hackware . | . . . . Protection . | . . . . Artifact . | . . . . Weapon 12 | 3 3 6 . Energy Gun 1 | 1 . . . Energy Cannon 3 | . . 3 . Ballistic Gun 7 | 2 2 3 . Ballistic Cannon . | . . . . Launcher 1 | . 1 . . Special Weapon . | . . . . Impact Weapon . | . . . . Slashing Weapon . | . . . . Piercing Weapon . | . . . . Special Melee Weapon . | . . . . Unidentified Prototypes . | . . . . Parts Lost 4 | . 1 3 . Power 1 | . . 1 . Propulsion 2 | . 1 1 . Utility . | . . . . Weapon 1 | . . 1 . Highest Loss Streak 1 | . 1 1 . To Critical Strikes 1 | . . 1 . Average Backups 8 | 3 8 9 7 Power . | . 1 . . Propulsion 2 | 1 2 2 2 Utility . | . 1 . . Weapon 4 | . 4 5 4 Tool/Special . | . . . . Unused Backups 10 | . . 4 6 Power . | . . . . Propulsion 2 | . . . 2 Utility . | . . . . Weapon 7 | . . 4 3 Tool/Special 1 | . . . 1 Average Slot Usage (%) 99 | . 99 99 63 Engine 13 | . 14 13 9 Treads 10 | . . 18 18 Leg 16 | . 27 9 . Device 13 | . 14 14 9 Storage 13 | . 14 14 9 Energy Cannon 3 | . . 6 9 Ballistic Gun 24 | . 28 21 9 Peak Build Rating 13 | 7 8 13 13 Average Rating 10 | 5 7 11 13 On Entrance 7 | . 7 8 13 Avg Prop Armor Cover (%) 7 | . . 7 . Naked Turns . | . . . . Heaviest Build 32 | 14 19 32 28 Greatest Support 40 | 20 20 40 40 Greatest Overweight (x) 3 | 3 1 1 . Average Overweight (x) . | . . . . Largest Inventory Capacity 10 | 8 10 10 10 Average Capacity 9 | 7 9 10 10 Most Carried 10 | 5 10 10 9 Average Carried 9 | 3 8 9 9 Final Capacity 10 | 8 10 10 10 Final Carried 10 | 5 10 9 9 Class Distribution -------------------- 51% | Scavenger-Mutant 48% | Mutant Dominant Class ---------------- Mutant | -10/Materials Scavenger-Mutant | -10/Subcaves Scavenger-Mutant | -8/Materials Resources | -11 -10 -10 -8 ----------- Run | Yrd Mat Sub Mat Matter Collected 895 | 161 301 433 . Remotely . | . . . . Salvage Created 1006 | 15 456 535 . Parts 80 | 4 33 43 . Haulers Intercepted 2 | . 2 . . Recyclers Shooed 3 | . 3 . . Parts Field Recycled . | . . . . Retrieved Matter . | . . . . Parts Self-Destructed 16 | . . 16 . Prevented . | . . . . Parts Restored . | . . . . Kills | -11 -10 -10 -8 ------- Run | Yrd Mat Sub Mat Combat Hostiles Destroyed 21 | . 9 12 . Guns 16 | . 9 7 . Cannons 5 | . . 5 . Classes Destroyed 8 | 1 6 1 . Worker 1 | . 1 . . Tunneler 1 | 1 . . . Hauler 2 | . 2 . . Operator 1 | . 1 . . Watcher 2 | . 2 . . Swarmer 7 | . 3 4 . Grunt 6 | . 6 . . Subdweller 8 | . . 8 . Best Kill Streak 3 | 1 3 3 . Combat Bots Only 3 | . 3 3 . Max Kills in Single Turn 2 | 1 2 1 . Gunslinging 1 | . 1 . . Exploded . | . . . . Melee . | . . . . Uniques/NPCs Destroyed . | . . . . Combat | -11 -10 -10 -8 -------- Run | Yrd Mat Sub Mat Hostile Shots Fired 89 | . 43 46 . Missed 19 | . 13 6 . Hits 70 | . 30 40 . Projectile 70 | . 30 40 . Critical Strikes 3 | . 1 2 . Damage Taken 1162 | . 352 810 . Core 178 | . 65 113 . Absorbed by Shields . | . . . . Core Remaining (%) 64 | 100 . 28 . Volleys Fired 112 | 3 58 51 . Largest 2 | 2 2 2 . Hottest 160 | 40 40 160 . Shots Fired 209 | 6 115 88 . Gun 174 | 6 114 54 . Cannon 34 | . . 34 . Launcher 1 | . 1 . . Special . | . . . . Kinetic 174 | 6 114 54 . Thermal 34 | . . 34 . Explosive 1 | . 1 . . Electromagnetic . | . . . . Robot Hit Streak 14 | 2 7 14 . Robot Miss Streak 7 | 2 7 2 . Penetration Max . | . . . . Secondary Targets 4 | . 3 1 . Max Gunslinging Chain 1 | . 1 1 . Shots Hit Robots 124 | 3 64 57 . Core Hits 51 | 1 29 21 . Critical Kills . | . . . . Critical Parts Destroyed . | . . . . Critical Strikes . | . . . . Melee Attacks . | . . . . Impact . | . . . . Slashing . | . . . . Piercing . | . . . . Sneak Attacks . | . . . . Combat Hostiles . | . . . . Follow-up Attacks . | . . . . Damage Inflicted 1983 | 28 770 1185 . Guns 1235 | 28 705 502 . Cannons 683 | . . 683 . Explosions 36 | . 36 . . Melee . | . . . . Ramming 29 | . 29 . . Kinetic 1235 | 28 705 502 . Thermal 683 | . . 683 . Explosive 36 | . 36 . . Electromagnetic . | . . . . Impact . | . . . . Slashing . | . . . . Piercing . | . . . . Highest Corruption . | . . . . Average Corruption . | . . . . Corruption Purged . | . . . . Corruption Blocked . | . . . . Overload Shots . | . . . . Overflow Damage . | . . . . Projectiles . | . . . . Explosions . | . . . . Melee . | . . . . Knockbacks . | . . . . Impact . | . . . . Kinetic . | . . . . Secondary . | . . . . Self-Inflicted Damage . | . . . . Shots . | . . . . Rammed . | . . . . Targets Rammed 5 | . 5 . . Kicked 5 | . 5 . . Crushed . | . . . . Highest Temperature 117 | . 40 117 . Average Temperature 30 | . 17 34 . Received Heat Transfer 339 | . 180 159 . Siege Activations . | . . . . Martial Activations . | . . . . Shielding Activations . | . . . . Robots Disrupted . | . . . . Combat Hostiles . | . . . . Robots Corrupted . | . . . . Combat Hostiles . | . . . . Parts Fried . | . . . . Impact Corruptions . | . . . . Robots Melted . | . . . . Combat Hostiles . | . . . . Parts Melted 2 | . . 2 . Heat Transferred 925 | . . 925 . Parts Sabotaged . | . . . . Parts Stolen . | . . . . Parts Stripped . | . . . . Power Chain Reactions . | . . . . Alert | -11 -10 -10 -8 ------- Run | Yrd Mat Sub Mat Maximum Alert Level . | . . . . Low Security (%) 100 | 100 100 . 100 Level 1 . | . . . . Level 2 . | . . . . Level 3 . | . . . . Level 4 . | . . . . Level 5 . | . . . . High Security . | . . . . Max Security . | . . . . Peak Influence 140 | 5 140 . . Initial . | . . . . Average 59 | . 62 . . Influence Increases 559 | 5 464 90 . Destroy 0b10 Robot/C 260 | . 180 80 . Destroy 0b10 Robot/NC 35 | 5 30 . . Destroy Leader 68 | . 58 10 . Successful Hack 25 | . 25 . . Select Force Hacks 60 | . 60 . . Disable Machine 15 | . 15 . . Destroy Structure 6 | . 6 . . Partial Spotted 15 | . 15 . . Lose Combat Pursuer 75 | . 75 . . Influence Decreases 559 | 5 357 197 . Entered New Map 52 | . . 52 . Time Decay 467 | 5 347 115 . Lost Part 40 | . 10 30 . Squads Dispatched 6 | . 5 . 1 Investigation 4 | . 4 . . Extermination . | . . . . Reinforcement 2 | . 1 . 1 Assault . | . . . . Garrison . | . . . . Intercept . | . . . . Searches Triggered . | . . . . Construction Impeded . | . . . . Haulers Reinforced . | . . . . Active Scanning Responses . | . . . . Cargo Convoy Interrupts . | . . . . Stealth | -11 -10 -10 -8 --------- Run | Yrd Mat Sub Mat Distress Signals 4 | . 4 . . Communications Jammed . | . . . . Distress Signals . | . . . . Times Spotted 31 | . 20 11 . Peak Tracking Total 5 | . 5 3 . Tactical Retreats 4 | . 4 . . Traps | -11 -10 -10 -8 ------- Run | Yrd Mat Sub Mat Traps Triggered 4 | . 3 1 . Indirectly . | . . . . Trap Hack Attempts . | . . . . Triggered . | . . . . Disarmed . | . . . . Reprogrammed . | . . . . Reused . | . . . . Traps Extracted . | . . . . Installed . | . . . . Triggered . | . . . . Machines | -11 -10 -10 -8 ---------- Run | Yrd Mat Sub Mat Machines Disabled 2 | . 1 1 . Max in Single Turn 1 | . 1 1 . Machines Repaired . | . . . . Machines Dismantled . | . . . . Machines Sabotaged . | . . . . Overloaded Fab Kills . | . . . . Hacking | -11 -10 -10 -8 --------- Run | Yrd Mat Sub Mat Machines Accessed 9 | . 8 1 . Terminals 6 | . 6 . . Fabricators . | . . . . Repair Stations . | . . . . Recycling Units 2 | . 2 . . Scanalyzers . | . . . . Garrison Access . | . . . . Total Hacks 29 | . 28 1 . Successful 14 | . 13 1 . Failed 14 | . 14 . . Catastrophic 1 | . 1 . . Database Lockouts 1 | . 1 . . Manual 21 | . 21 . . Terminals 26 | . 26 . . Fabricators . | . . . . Repair Stations . | . . . . Recycling Units 2 | . 2 . . Scanalyzers . | . . . . Garrison Access . | . . . . Terminal Hacks 5 | . 4 1 . Part Schematic 2 | . 2 . . Prototype ID Bank 2 | . 2 . . Proto ID Catalog 1 | . . 1 . Fabricator Hacks . | . . . . Repair Station Hacks . | . . . . Recycling Unit Hacks . | . . . . Scanalyzer . | . . . . Garrison Access Hacks . | . . . . Unauthorized Hacks 9 | . 9 . . Terminals 7 | . 7 . . Botnet 1 | . 1 . . Operators 1 | . 1 . . Skim 5 | . 5 . . Fabricators . | . . . . Repair Stations . | . . . . Recycling Units 2 | . 2 . . Tunnel 2 | . 2 . . Scanalyzers . | . . . . Garrison Access . | . . . . Data Cores Recovered . | . . . . Used . | . . . . Hacking Detections 6 | . 6 . . Full Trace Events . | . . . . Feedback Events . | . . . . Feedback Blocked . | . . . . Robot Schematics Acquired . | . . . . Robots Built . | . . . . Authchips . | . . . . Time . | . . . . Total Robot Build Rating . | . . . . Part Schematics Acquired 2 | . 2 . . Parts Built . | . . . . Authchips . | . . . . Time . | . . . . Total Part Build Rating . | . . . . Part Studies Acquired . | . . . . Parts Repaired . | . . . . Time . | . . . . Parts Recycled . | . . . . Recycled Matter . | . . . . Retrieved Matter . | . . . . Retrieved Components . | . . . . Parts Scanalyzed . | . . . . Part Schematics Acquired . | . . . . Parts Damaged . | . . . . Bothacking | -11 -10 -10 -8 ------------ Run | Yrd Mat Sub Mat Used RIF Installer . | . . . . Robots Hacked . | . . . . Non-combat . | . . . . Combat . | . . . . Robot Hacks Applied . | . . . . Relay Couplers Released . | . . . . Fabnet Peak Effective % . | . . . . Robots Rewired . | . . . . Allies Hacked . | . . . . Hacks Repelled . | . . . . Allies | -11 -10 -10 -8 -------- Run | Yrd Mat Sub Mat Total Allies . | . . . . Largest Group . | . . . . Highest-Rated Group . | . . . . Highest-Rated Ally . | . . . . Total Orders . | . . . . Ally Attacks . | . . . . Total Damage . | . . . . Kills . | . . . . Allies Corrupted . | . . . . Allies Melted . | . . . . Intel | -11 -10 -10 -8 ------- Run | Yrd Mat Sub Mat Active Infowar (turns) 5329 | 26 2217 3066 20 Terrain 860 | . . 860 . Seismic 4469 | 26 2217 2206 20 Robot Analysis Total . | . . . . Derelict Logs Recovered 2 | . . 2 . Drone Launches . | . . . . Drone Recoveries . | . . . . Exploration | -11 -10 -10 -8 ------------- Run | Yrd Mat Sub Mat Turns Passed 5399 | 96 2217 3066 20 Spaces Moved 2041 | 60 722 1247 12 Core 17 | 17 . . . Treads 1225 | . . 1213 12 Legs 799 | 43 722 34 . Wheels . | . . . . Hover . | . . . . Flight . | . . . . Fastest Speed 50 | 50 120 120 160 Average Speed 167 | 120 120 197 160 Slowest Speed 240 | 200 190 240 160 Overloaded Moves . | . . . . Propulsion Burnouts . | . . . . Robots Hopped . | . . . . Potential Cave-ins . | . . . . Cave-ins Triggered . | . . . . Exploration Rate (%) 40 | 4 96 58 4 Regions Visited 3 Branch Regions 1 Pre-discovered Areas 4 | . 2 2 . Known Exits Taken 1 | . . 1 . Unknown Exits Taken 2 | 1 1 . . Scrap Searched 8 | . . 8 . Spaces Dug . | . . . . Terrain Destroyed 7 | . 5 2 . Melee . | . . . . Projectile 2 | . . 2 . AOE 5 | . 5 . . Terrain Rammed . | . . . . Walls Destroyed . | . . . . Machines Disabled . | . . . . Actions | -11 -10 -10 -8 --------- Run | Yrd Mat Sub Mat Total 3818 | 75 1964 1767 12 Wait 1596 | . 1162 434 . Move 2038 | 59 721 1246 12 Hop . | . . . . Pick Up 18 | 4 6 8 . Fast Attach 13 | 8 3 2 . Attach 5 | . . 5 . Detach 1 | 1 . . . Swap 13 | . 5 8 . Drop 17 | . 4 13 . Fire 112 | 3 58 51 . Melee . | . . . . Ram . | . . . . Kick 5 | . 5 . . Crush . | . . . . Escape Stasis . | . . . . Rewire . | . . . . Trap . | . . . . Miscellaneous . | . . . . Route ------- -11/Scrapyard -10/Materials (discovered 5 exits: *Mat x3 / [*Min] / *Sub) -10/Subcaves (discovered 3 exits: *Mat / Rec / [*Scr]) -8/Materials (discovered 2 exits: Fac x2) History --------- Turn | Location | Event 22 | -11/Scrapyard | Discovered new exit (range 15) 97 | -11/Scrapyard | Entered Materials 307 | -10/Materials | Build established: Mutant 857 | -10/Materials | Discovered new exit (range 7) 974 | -10/Materials | Discovered new exit (range 14) 1244 | -10/Materials | Discovered new exit (range 9) 1445 | -10/Materials | Central database locked down 1465 | -10/Materials | Discovered new exit (range 15) 1523 | -10/Materials | Build established: Scavenger-Mutant 1863 | -10/Materials | Build established: Mutant 2050 | -10/Materials | Learned location of 2 exits from Subcaves 2101 | -10/Materials | Learned location of 1 exit from Recycling 2140 | -10/Materials | Identified exit to Materials 2190 | -10/Materials | Learned 2 Mines zone layouts 2201 | -10/Materials | Learned location of 2 exits from Materials 2230 | -10/Materials | Learned Storage garrison access intel 2314 | -10/Materials | Entered Subcaves 2315 | -10/Subcaves | Approached by a straggling Scientist 2315 | -10/Subcaves | Identified exit to Materials 2315 | -10/Subcaves | Identified exit to Recycling 2338 | -10/Subcaves | Shifting Twisted Machinery released Barrage Gun 2430 | -10/Subcaves | Shifting Twisted Machinery released Sub. Laser 2618 | -10/Subcaves | Learned location of Zion (-7) 2661 | -10/Subcaves | Build established: Scavenger-Mutant 4237 | -10/Subcaves | Visited 4L-MR0's lab 4267 | -10/Subcaves | Found Arachnoskeleton 4334 | -10/Subcaves | Shifting Twisted Machinery released Sub. Machine Gun 4388 | -10/Subcaves | Shifting Twisted Machinery released Sub. Power Source 4457 | -10/Subcaves | Disturbed a concealed Subdweller 4732 | -10/Subcaves | Disturbed a concealed Subdweller 4733 | -10/Subcaves | Disturbed a concealed Subdweller 4737 | -10/Subcaves | Core integrity fell below 50% 4748 | -10/Subcaves | Build established: Mutant 4925 | -10/Subcaves | A swath of the cavern ceiling suddenly collapsed 5380 | -10/Subcaves | Entered Materials 5380 | -8/Materials | Evolved 4 slots: Propulsion x1, Utility x2, Weapon x1 5381 | -8/Materials | Identified exit to Factory 5400 | -8/Materials | Self-destructed Last Messages --------------- 05261_ Sub. Power Source melted. 05261_ 1L-S28(R) destroyed. 05265_ Acquired 25 matter. 05276_ Subatomizers dissect the Sub. Optics. 05281_ Acquired Sub. Power Source. 05290_ Subatomizers dissect the Sub. Optics. 05292_ Acquired 10 matter. 05307_ Acquired Riot Gun. 05315_ Subatomizers dissect the Sub. Optics. PARAMETERS=PROPULSION+1,UTILITY+2,WEAPON+1 LOCATION=MATERIALS GOAL=ESCAPE Loading 2 Materials exits... 05398_ O-16 Technician: "IFF HANDSHAKE FAILED. SECURING TERMINAL." 05399_ O-16 Technician uses terminal to summon reinforcements. 05399_ ALERT: Hostiles spotted, dispatching reinforcements to Terminal M007. 05399_ O-16 Technician locks terminal. Map ----- +----------------------------------------------------+ | ?????????????????????????????????????? | | ?????????????????????????????????????? | | ?????????????????????????????????????? | | ?????????????????????????????????????? | | ?????????????????????????????????????? | | ?????????????????????????????????????? | | ?????????????????????????????????????? | | ?????????????????????????????????????? | | ?????????????????????????????????????? | | ?????????????????????????????????????? | | ?????????????????????????????????????? | | ?????????????????????????????????????? | | ?????????????????????????????????????? | | ?????????????????????????????????????? | | ?????????????????????????????????????? | | ?????????????? ??????????????????????? | | ????????????? ###########??????????? | | ????????????? ??????????? | | ????????????+ ??????????? | | ????????????# ??????????? | | ????????????# #??#+###???? | | ????????????# #? #???? | | ????????????# # "T" ?????? | | ????????????+ # ???????? | | ????????????????? + ?????????? | | ??????????????????????# @#??????????? | | ??????????????????????# #??????????? | | ??????????????????????# ########???? | | ??????????????????????# # ! ] #???? | | ??????????????????????# + #???? | | ??????????????????????# # """ #???? | | ?????????????????###### # """ #???? | | ?????????????????# #? """ #???? | | ?????????????????# #? #???? | | ?????????????????# #??#####???? | | ?????????????????# ######??????????? | | ?????????????????# #???????????????? | | ?????????????????#####???????????????? | | ?????????????????????????????????????? | | ?????????????????????????????????????? | | ?????????????????????????????????????? | | ?????????????????????????????????????? | | ?????????????????????????????????????? | | ?????????????????????????????????????? | | ?????????????????????????????????????? | | ?????????????????????????????????????? | | | | | | | | | +----------------------------------------------------+ Best States ------------- Heat Dissipation 31 Energy Generation 10 Energy Capacity 250 Matter Stores 300 Matter Capacity 300 Sight Range 16 Terrain Scan Range 16 Terrain Scan Density 10 Evasion (%) 55 Recoil Reduction 2 Item Schematics ----------------- Hcp. Storage Unit | -10/Materials | Hacked Huge Storage Unit | -10/Materials | Hacked Robot Schematics ------------------ None Fabricated ------------ Nothing Repaired ---------- Nothing Studied --------- None Alien Tech Used ----------------- None Achievements -------------- None Challenges ------------ None Game ------ Seed RefineryTerrorWheel Manual? 0 Play Time 00:20:41 Cumulative 344.1 hours Start 2025.11.08 @ 13:17:46 End 2025.11.08 @ 13:54:55 Sessions 1 Manual Loads 0 Difficulty Rogue Special Mode None Game No. 245 Rogue 245 Adventurer 0 Explorer 0 Win Type - Total 22 Types 9/0/7/1/1/0/1/1/1/1 Lore% 82 Gallery% 78 Achievement% 62 Wizard Run 0 Options --------- Layout 1 ASCII 0 Keyboard 0 Movement Mouse Keybinds 0 Fullscreen 2 Font 24/Smallcaps Map View 50x35 Zoom Use 0% Tactical HUD 1 Map Filters NONE Filters NONE Steam 1 RUN: e5ee82c7-993f-4835-b976-626d6780ad86